fUST/lending_fUST_20250720
["ID","MTS","AMOUNT","RATE_DAILY","PERIOD"]
[373380339,1752977444861,-151.0,0.00021555,2]
[373380340,1752977444871,-151.32176,0.00021555,2]
[373380341,1752977444880,-151.0,0.00021555,2]
[373380342,1752977444889,-173.942307,0.00021555,2]
[373380343,1752977444899,-173.942307,0.00021555,2]
[373380344,1752977444908,-151.0,0.00021555,2]
[373380345,1752977444918,-151.0,0.00021555,2]
[373380346,1752977444927,-336.431934,0.00021555,2]
[373380347,1752977444937,-8585.20437225,0.00021555,5]
[373380348,1752977444946,-714.49,0.00021585,2]
[373380349,1752977444955,-741.54,0.00021585,2]
[373380350,1752977444964,-1329.16,0.00021585,2]
[373380351,1752977444973,-460.0,0.00021585,2]
[373380352,1752977444982,-500.0,0.00021586,2]
[373380353,1752977444991,-701.2,0.00021606,2]
[373380354,1752977444999,-523.82,0.00021606,2]
[373380355,1752977445008,-470.83,0.00021607,2]
[373380356,1752977445018,-251.36138871,0.00021607,2]
[373380357,1752977445027,-707.43,0.00021609,2]
[373380358,1752977445037,-1381.59,0.00021609,2]
[373380359,1752977445045,-460.0,0.00021609,2]
[373380360,1752977445055,-513.6,0.0002161,2]
[373380361,1752977445064,-460.0,0.00021612,2]
[373380362,1752977445074,-531.22,0.00021612,2]
[373380363,1752977445083,-408.73243802,0.00021615,2]
[373380364,1752977445092,-150.148,0.00021706,2]
[373380365,1752977445193,-1000.0,0.00021779,2]
[373380366,1752977445206,-298.133821,0.00021796,2]
[373380367,1752977445215,-298.133821,0.00021796,2]
[373380368,1752977445224,-270.495979,0.00021796,2]
[373380369,1752977445236,-270.495979,0.00021796,2]
[373380370,1752977445245,-151.0,0.00021796,2]
[373380371,1752977445255,-8585.20437225,0.00021797,6]
[373380372,1752977445265,-266.27073169,0.00021844,2]
[373380373,1752977445274,-714.49,0.00021859,2]
[373380374,1752977445284,-741.54,0.00021859,2]
[373380375,1752977445293,-1329.16,0.00021859,2]
[373380376,1752977445304,-520.71101738,0.00021859,2]
[373380377,1752977445314,-500.0,0.0002186,2]
[373380378,1752977445324,-169.45616085,0.00021863,2]
[373380379,1752977445334,-701.2,0.0002188,2]
[373380380,1752977445343,-523.82,0.0002188,2]
[373380381,1752977445353,-470.83,0.00021881,2]
[373380382,1752977445362,-707.43,0.00021883,2]
[373380383,1752977445371,-1381.59,0.00021883,2]
[373380384,1752977445380,-460.0,0.00021883,2]
[373380385,1752977445389,-513.6,0.00021884,2]
[373380386,1752977445398,-151.0,0.00021884,2]
[373380387,1752977445407,-196.283986,0.00021884,2]
[373380388,1752977445416,-225.870134,0.00021884,2]
[373380389,1752977445426,-225.870134,0.00021884,2]
[373380390,1752977445435,-460.0,0.00021886,2]
[373380391,1752977445444,-531.22,0.00021886,2]
[373380392,1752977445453,-1000.0,0.00021894,2]
[373380393,1752977445462,-500.0,0.00021917,2]
[373380394,1752977445472,-500.0,0.00021917,2]
[373380395,1752977445481,-500.0,0.00021917,2]
[373380396,1752977445490,-500.0,0.00021917,2]
[373380397,1752977445499,-500.0,0.00021917,2]
[373380398,1752977445508,-192.28591105,0.00021917,2]
[373380399,1752977445517,-151.0,0.00021918,2]
[373380400,1752977445526,-151.0,0.00021918,2]
[373380401,1752977445535,-151.0,0.00021918,2]
[373380402,1752977445544,-151.0,0.00021918,2]
[373380403,1752977445553,-150.0,0.00021918,2]
[373380404,1752977445563,-150.09319079,0.00021918,2]
[373380405,1752977445572,-414.694755,0.00021995,7]
[373380406,1752977445581,-414.694755,0.00021995,7]
[373380407,1752977445590,-587.0,0.00021995,2]
[373380408,1752977445599,-512.46627473,0.00021998,2]
[373380409,1752977445608,-421.81853855,0.00021998,2]
[373380410,1752977445618,-1000.0,0.00021998,2]
[373380411,1752977445628,-160.0,0.00022,2]
[373380413,1752977445637,-8585.20437225,0.00022038,6]
[373380414,1752977445646,-150.182,0.00022059,2]
[373380415,1752977445655,-699.072,0.00022059,2]
[373380416,1752977445664,-2156.0,0.00022059,2]
[373380417,1752977445673,-970.712,0.00022059,2]
[373380418,1752977445682,-223.0315306,0.00022095,2]
[373380419,1752977445691,-500.0,0.00022133,2]
[373380420,1752977445701,-714.49,0.00022133,2]
[373380421,1752977445711,-741.54,0.00022133,2]
[373380422,1752977445720,-1329.16,0.00022133,2]
[373380424,1752977445730,-701.2,0.00022154,2]
[373380426,1752977445739,-523.82,0.00022154,2]
[373380427,1752977445749,-151.0,0.00022155,7]
[373380429,1752977445758,-151.0,0.00022155,7]
[373380431,1752977445767,-470.83,0.00022155,2]
[373380432,1752977445777,-707.43,0.00022157,2]
[373380433,1752977445787,-1381.59,0.00022157,2]
[373380434,1752977445796,-460.0,0.00022157,2]
[373380435,1752977445805,-513.6,0.00022158,2]
[373380436,1752977445814,-500.0,0.0002216,2]
[373380438,1752977445824,-460.0,0.0002216,2]
[373380440,1752977445833,-531.22,0.0002216,2]
[373380442,1752977445843,-429.2062168,0.00022164,2]
[373380444,1752977445852,-303.20879103,0.00022174,2]
[373380446,1752977445862,-1506.16,0.000222,2]
[373380448,1752977445872,-173.942307,0.00022279,7]
[373380450,1752977445881,-173.942307,0.00022279,7]
[373380452,1752977445891,-152.473751,0.00022279,7]
[373380454,1752977445901,-151.0,0.00022279,7]
[373380456,1752977445911,-336.431934,0.00022279,7]
[373380458,1752977445920,-8585.20437225,0.00022279,6]
[373380460,1752977445929,-500.0,0.00022303,2]
[373380462,1752977445939,-1500.0,0.00022327,2]
[373380463,1752977445948,-429.4514592,0.00022384,2]
[373380465,1752977445957,-429.4514592,0.00022384,2]
[373380467,1752977445966,-500.0,0.00022407,2]
[373380469,1752977445976,-714.49,0.00022407,2]
[373380471,1752977445985,-741.54,0.00022407,2]
[373380473,1752977445994,-1329.16,0.00022407,2]
[373380476,1752977446003,-151.610801,0.00022417,2]
[373380479,1752977446013,-701.2,0.00022428,2]
[373380481,1752977446022,-523.82,0.00022428,2]
[373380483,1752977446031,-470.83,0.00022429,2]
[373380485,1752977446040,-151.0,0.0002243,7]
[373380487,1752977446049,-707.43,0.00022431,2]
[373380489,1752977446058,-1381.59,0.00022431,2]
[373380491,1752977446068,-513.6,0.00022432,2]
[373380493,1752977446077,-460.0,0.00022434,2]
[373380495,1752977446087,-531.22,0.00022434,2]
[373380497,1752977446097,-239.836,0.00022435,7]
[373380499,1752977446106,-429.4514592,0.00022438,2]
[373380501,1752977446116,-1315.81894006,0.00022442,2]
[373380503,1752977446125,-8585.20437225,0.00022521,7]
[373380505,1752977446134,-298.133821,0.00022521,7]
[373380507,1752977446144,-298.133821,0.00022521,7]
[373380509,1752977446153,-270.495979,0.00022521,7]
[373380511,1752977446162,-270.495979,0.00022521,7]
[373380513,1752977446171,-165.443902,0.00022521,7]
[373380515,1752977446180,-151.0,0.00022521,7]
[373380517,1752977446189,-225.870134,0.00022521,7]
[373380519,1752977446198,-225.870134,0.00022521,7]
[373380521,1752977446207,-454.951464,0.00022523,8]
[373380523,1752977446217,-1500.0,0.00022546,2]
[373380525,1752977446226,-214.5637056,0.000226,7]
[373380527,1752977446239,-351.77051503,0.00022611,7]
[373380529,1752977446248,-500.0,0.00022681,2]
[373380530,1752977446257,-714.49,0.00022681,2]
[373380531,1752977446267,-741.54,0.00022681,2]
[373380532,1752977446277,-1329.16,0.00022681,2]
[373380533,1752977446287,-154.7328928,0.00022685,2]
[373380534,1752977446297,-153.3382709,0.00022685,2]
[373380535,1752977446308,-701.2,0.00022702,2]
[373380537,1752977446319,-523.82,0.00022702,2]
[373380538,1752977446329,-470.83,0.00022703,2]
[373380540,1752977446338,-414.694755,0.00022705,7]
[373380542,1752977446347,-414.694755,0.00022705,7]
[373380544,1752977446356,-707.43,0.00022705,2]
[373380546,1752977446365,-1381.59,0.00022705,2]
[373380548,1752977446374,-513.6,0.00022706,2]
[373380550,1752977446384,-460.0,0.00022708,2]
[373380552,1752977446393,-531.22,0.00022708,2]
[373380554,1752977446402,-500.0,0.00022717,2]
[373380556,1752977446411,-8585.20437225,0.00022762,7]
[373380558,1752977446421,-151.0,0.00022796,7]
[373380560,1752977446430,-2000.0,0.00022875,2]
[373380562,1752977446438,-151.610801,0.00022898,3]
[373380564,1752977446448,-714.49,0.00022955,2]
[373380566,1752977446457,-741.54,0.00022955,2]
[373380568,1752977446466,-1329.16,0.00022955,2]
[373380570,1752977446475,-701.2,0.00022976,2]
[373380572,1752977446485,-523.82,0.00022976,2]
[373380574,1752977446493,-151.0,0.00022977,7]
[373380576,1752977446502,-151.0,0.00022977,7]
[373380578,1752977446511,-195.798128,0.00022977,7]
[373380580,1752977446520,-470.83,0.00022977,2]
[373380582,1752977446529,-707.43,0.00022979,2]
[373380584,1752977446538,-1381.59,0.00022979,2]
[373380586,1752977446547,-513.6,0.0002298,2]
[373380588,1752977446557,-541.42105152,0.00022982,2]
[373380590,1752977446566,-531.22,0.00022982,2]
[373380592,1752977446576,-325.44226858,0.00022983,2]
[373380594,1752977446586,-169.45616085,0.00022993,2]
[373380596,1752977446595,-160.0,0.00023,3]
[373380598,1752977446604,-213050.71018946,0.00023,7]
[373380600,1752977446613,-151.0,0.00023,7]
[373380602,1752977446622,-215.71456056,0.00023,3]
[373380604,1752977446631,-225.870134,0.00023,7]
[373380606,1752977446641,-225.870134,0.00023,7]
[373380608,1752977446650,-8585.20437225,0.00023003,8]
[373380610,1752977446660,-160.0,0.00023014,7]
[373380612,1752977446672,-153.45597437,0.00023029,3]
[373380614,1752977446682,-168.0,0.00023052,2]
[373380616,1752977446691,-2000.0,0.00023094,2]
[373380617,1752977446701,-173.942307,0.00023094,7]
[373380618,1752977446710,-173.942307,0.00023094,7]
[373380619,1752977446719,-151.0,0.00023094,7]
[373380620,1752977446729,-336.431934,0.00023094,7]
[373380621,1752977446738,-2200.0,0.00023205,2]
[373380622,1752977446747,-151.0,0.0002321,7]
[373380623,1752977446756,-151.0,0.0002321,7]
[373380624,1752977446766,-714.49,0.00023229,2]
[373380625,1752977446780,-741.54,0.00023229,2]
[373380626,1752977446789,-1329.16,0.00023229,2]
[373380627,1752977446799,-8585.20437225,0.00023245,8]
[373380628,1752977446808,-701.2,0.0002325,2]
[373380629,1752977446817,-523.82,0.0002325,2]
[373380630,1752977446827,-470.83,0.00023251,2]
[373380631,1752977446836,-707.43,0.00023253,2]
[373380632,1752977446845,-1381.59,0.00023253,2]
[373380633,1752977446854,-513.6,0.00023254,2]
[373380634,1752977446863,-500.0,0.00023256,2]
[373380635,1752977446872,-531.22,0.00023256,2]
[373380636,1752977446881,-500.0,0.00023256,2]
[373380637,1752977446890,-151.0,0.00023392,7]
[373380638,1752977446899,-500.0,0.00023392,2]
[373380639,1752977446909,-17672.96712411,0.000234,3]
[373380640,1752977446918,-303.20879103,0.000234,2]
[373380641,1752977446927,-298.133821,0.000234,7]
[373380642,1752977446936,-298.133821,0.000234,7]
[373380643,1752977446945,-270.495979,0.000234,7]
[373380644,1752977446955,-270.495979,0.000234,7]
[373380645,1752977446964,-414.694755,0.000234,7]
[373380646,1752977446973,-414.694755,0.000234,7]
[373380647,1752977446982,-160.0,0.00023408,3]
[373380648,1752977446991,-151.610801,0.00023422,14]
[373380649,1752977447001,-2506.33381922,0.00023423,2]
[373380650,1752977447010,-231.28369723,0.00023464,2]
[373380651,1752977447019,-8585.20437225,0.00023486,9]
[373380652,1752977447028,-500.0,0.00023499,2]
[373380653,1752977447037,-500.0,0.00023499,2]
[373380654,1752977447046,-500.0,0.00023499,2]
[373380655,1752977447055,-500.0,0.00023499,2]
[373380656,1752977447066,-500.0,0.00023499,2]
[373380657,1752977447075,-500.0,0.00023499,2]
[373380658,1752977447084,-521.27142496,0.00023499,2]
[373380659,1752977447093,-165.86702613,0.000235,2]
[373380660,1752977447102,-50672.94626546,0.000235,4]
[373380661,1752977447119,-307.71079408,0.000235,4]
[373380662,1752977447146,-460.0,0.00022431,2]
[373380663,1752977447156,-460.0,0.00022705,2]
[373380664,1752977447165,-539.56785592,0.000235,4]
[373380665,1752977447176,-258.22,0.000235,4]
[373380666,1752977447249,-407.0,0.00021839,2]
[373380667,1752977447258,-460.0,0.00022979,2]
[373380668,1752977447267,-525.91036056,0.00023,3]
[373380669,1752977447278,-499.3248617,0.00023,3]
[373380670,1752977447383,-340.27135111,0.00023,3]
[373380671,1752977447393,-460.0,0.00023253,2]
[373380672,1752977447403,-10425.1986096,0.000235,4]
[373380673,1752977447414,-500.0,0.000235,4]
[373380674,1752977447576,-460.0,0.00018571,2]
[373380675,1752977447586,-338.4,0.00018845,2]
[373380676,1752977447595,-417.607,0.00021839,2]
[373380677,1752977447604,-160.0,0.00023,3]
[373380678,1752977447613,-1220.60209377,0.000235,4]
[373380679,1752977447624,-732.15756489,0.000235,4]
[373380680,1752977447639,-178362.12609172,0.000235,4]
[373380681,1752977468742,161.959313,0.00013699,2]
[373380687,1752978006498,151.304749,0.0002739,120]
[373380689,1752978249806,-160.05037009,0.00017454,2]
[373380690,1752978367048,10000.0,0.0001652,2]
[373380691,1752978411362,150.0,0.00015136,2]
[373380692,1752978411793,150.0,0.00015857,2]
[373380693,1752978478012,150.0,0.00014819,2]
[373380694,1752978478431,150.0,0.00015525,2]
[373380696,1752978513599,1037.23736043,0.00025364,60]
[373380697,1752978515402,875.6899367,0.00025364,120]
[373380698,1752978517937,244.0530521,0.00024,60]
[373380699,1752978520507,1133.77080567,0.00025364,120]
[373380700,1752978521593,1113.57140583,0.00025364,120]
[373380701,1752978521627,202.67998968,0.00025364,120]
[373380702,1752978524216,525.350021,0.00025364,120]
[373380704,1752978584892,5000.0,0.0001833,6]
[373380706,1752978626003,177.388097,0.00013699,2]
[373380873,1752978637992,-341.65673893,0.00017454,2]
[373380879,1752978638147,-681.18328617,0.00017535,2]
[373380880,1752978638165,-3659.19530598,0.00017535,2]
[373380881,1752978638184,-384.11676842,0.00017535,2]
[373380882,1752978638195,-665.1617088,0.00017535,2]
[373380885,1752978638432,-1705.58181203,0.00017535,2]
[373380886,1752978638441,-226.78426144,0.0001827,2]
[373380887,1752978638451,-160.21321051,0.0001837,2]
[373380888,1752978638461,-248.0,0.00018371,2]
[373380889,1752978638471,-148.07868655,0.00018372,2]
[373380890,1752978638484,-351.92131345,0.00018372,2]
[373380891,1752978638493,-194.57199345,0.00018467,2]
[373380892,1752978638503,-300.0,0.0001847,2]
[373380893,1752978638514,-300.0,0.0001847,2]
[373380894,1752978638523,-1148.0,0.00018471,2]
[373380895,1752978638534,-1089.08856321,0.00018471,2]
[373380896,1752978638543,-2018.12433416,0.00018472,2]
[373380897,1752978638552,-460.0,0.00018559,2]
[373380898,1752978638562,-275.36,0.0001856,3]
[373380899,1752978638571,-826.08,0.0001856,3]
[373380900,1752978638580,-15844.01529262,0.0001856,2]
[373380901,1752978638589,-470.05444898,0.00018565,2]
[373380902,1752978638599,-463.8142328,0.00018565,2]
[373380903,1752978638608,-464.73812866,0.00018565,2]
[373380904,1752978638618,-460.0,0.00018565,2]
[373380905,1752978638629,-456.02718739,0.00018565,2]
[373380906,1752978638639,-156.85791479,0.00018565,2]
[373380907,1752978638651,-460.0,0.00018565,2]
[373380908,1752978638663,-460.0,0.00018565,2]
[373380909,1752978638673,-460.0,0.00018565,2]
[373380910,1752978638682,-460.0,0.00018566,2]
[373380911,1752978638692,-6.65039333,0.00018566,2]
[373380912,1752978638705,-453.34960667,0.00018566,2]
[373380913,1752978638715,-563.15914466,0.00018566,2]
[373380914,1752978638726,-460.0,0.00018566,2]
[373380915,1752978638743,-460.0,0.00018566,2]
[373380916,1752978638761,-462.60867163,0.00018566,2]
[373380917,1752978638782,-460.0,0.00018566,2]
[373380918,1752978638801,-462.00291541,0.00018566,2]
[373380919,1752978638821,-461.03002199,0.00018566,2]
[373380920,1752978638843,-460.0,0.00018566,2]
[373380921,1752978638862,-461.3714588,0.00018566,2]
[373380922,1752978638882,-460.0,0.00018566,2]
[373380923,1752978638902,-461.35368267,0.00018566,2]
[373380924,1752978638924,-463.46888311,0.00018566,2]
[373380925,1752978638945,-460.0,0.00018566,2]
[373380926,1752978638965,-547.95,0.00018566,2]
[373380927,1752978638986,-461.95564146,0.00018566,2]
[373380928,1752978639008,-460.0,0.00018567,2]
[373380929,1752978639030,-460.0,0.00018567,2]
[373380930,1752978639043,-460.0,0.00018567,2]
[373380931,1752978639053,-460.0,0.00018567,2]
[373380932,1752978639062,-462.15074168,0.00018567,2]
[373380933,1752978639072,-464.51892482,0.00018567,2]
[373380934,1752978639081,-460.0,0.00018567,2]
[373380935,1752978639090,-461.93340569,0.00018567,2]
[373380936,1752978639099,-461.30669334,0.00018567,2]
[373380937,1752978639108,-416.33919372,0.00018567,2]
[373380938,1752978639117,-837.28,0.00018567,2]
[373380939,1752978639126,-460.0,0.00018567,2]
[373380940,1752978639135,-460.0,0.00018567,2]
[373380941,1752978639145,-460.0,0.00018567,2]
[373380942,1752978639154,-461.8000095,0.00018567,2]
[373380943,1752978639162,-460.0,0.00018567,2]
[373380944,1752978639171,-460.0,0.00018567,2]
[373380945,1752978639180,-204.89732211,0.00018567,2]
[373380946,1752978639191,-255.10267789,0.00018567,2]
[373380947,1752978639200,-460.0,0.00018567,2]
[373380948,1752978639209,-512.46502629,0.00018567,2]
[373380949,1752978639219,-880.58,0.00018567,2]
[373380950,1752978639227,-460.0,0.00018567,2]
[373380951,1752978639237,-460.0,0.00018567,2]
[373380952,1752978639246,-460.0,0.00018567,2]
[373380953,1752978639255,-460.0,0.00018567,2]
[373380954,1752978639264,-1578.93,0.00018567,2]
[373380955,1752978639273,-460.0,0.00018567,2]
[373380956,1752978639283,-460.0,0.00018567,2]
[373380957,1752978639293,-460.0,0.00018567,2]
[373380958,1752978639302,-460.0,0.00018567,2]
[373380959,1752978639312,-460.0,0.00018567,2]
[373380960,1752978639322,-470.90591752,0.00018567,2]
[373380961,1752978639331,-193.15542861,0.00018567,2]
[373380962,1752978639343,-266.84457139,0.00018567,2]
[373380963,1752978639353,-460.0,0.00018567,2]
[373380964,1752978639363,-460.0,0.00018567,2]
[373380965,1752978639372,-460.0,0.00018567,2]
[373380966,1752978639382,-463.03970623,0.00018568,2]
[373380967,1752978639392,-461.05198855,0.00018568,2]
[373380968,1752978639401,-460.0,0.00018568,2]
[373380969,1752978639410,-465.59525994,0.00018568,2]
[373380970,1752978639419,-460.0,0.00018568,2]
[373380971,1752978639428,-464.55019355,0.00018568,2]
[373380972,1752978639438,-460.0,0.00018568,2]
[373380973,1752978639447,-570.44018272,0.00018568,2]
[373380974,1752978639457,-460.0,0.00018568,2]
[373380975,1752978639466,-460.0,0.00018568,2]
[373380976,1752978639475,-461.40674014,0.00018568,2]
[373380977,1752978639485,-518.83641851,0.00018568,2]
[373380978,1752978639494,-460.71697167,0.00018568,2]
[373380979,1752978639503,-461.61572652,0.00018568,2]
[373380980,1752978639512,-460.0,0.00018568,2]
[373380981,1752978639522,-462.09883306,0.00018568,2]
[373380982,1752978639532,-460.0,0.00018568,2]
[373380983,1752978639541,-262.21833776,0.00018568,2]
[373380984,1752978639557,-201.69640904,0.00018568,2]
[373380985,1752978639566,-460.0,0.00018568,2]
[373380986,1752978639575,-466.7650482,0.00018568,2]
[373380987,1752978639585,-500.0,0.00018568,2]
[373380988,1752978639594,-461.24260034,0.00018568,2]
[373380989,1752978639603,-460.0,0.00018568,2]
[373380990,1752978639613,-460.0,0.00018568,2]
[373380991,1752978639622,-1005.01608251,0.00018568,2]
[373380992,1752978639631,-500.0,0.00018568,2]
[373380993,1752978639641,-460.0,0.00018568,2]
[373380994,1752978639650,-460.0,0.00018568,2]
[373380995,1752978639660,-461.25757545,0.00018568,2]
[373380996,1752978639672,-460.0,0.00018568,2]
[373380997,1752978639682,-460.0,0.00018568,2]
[373380998,1752978639692,-463.93652107,0.00018568,2]
[373380999,1752978639701,-461.56873654,0.00018568,2]
[373381000,1752978639711,-460.0,0.00018568,2]
[373381001,1752978639720,-464.13890746,0.00018568,2]
[373381002,1752978639729,-374.10076425,0.00018568,2]
[373381003,1752978639739,-464.64178917,0.00018568,2]
[373381004,1752978639748,-460.0,0.00018568,2]
[373381005,1752978639757,-463.3530894,0.00018568,2]
[373381006,1752978639767,-460.0,0.00018568,2]
[373381007,1752978639776,-462.96311802,0.00018568,2]
[373381008,1752978639786,-460.90290907,0.00018568,2]
[373381009,1752978639795,-461.48949816,0.00018568,2]
[373381010,1752978639804,-460.0,0.00018568,2]
[373381011,1752978639813,-460.0,0.00018568,2]
[373381012,1752978639823,-560.72538807,0.00018568,2]
[373381013,1752978639833,-460.0,0.00018568,2]
[373381014,1752978639842,-460.0,0.00018568,2]
[373381015,1752978639851,-460.0,0.00018568,2]
[373381016,1752978639860,-465.52343992,0.00018568,2]
[373381017,1752978639869,-460.0,0.00018568,2]
[373381018,1752978639878,-460.0,0.00018568,2]
[373381019,1752978639889,-460.0,0.00018568,2]
[373381020,1752978639901,-500.0,0.00018568,2]
[373381021,1752978639914,-460.0,0.00018568,2]
[373381022,1752978639926,-460.0,0.00018568,2]
[373381023,1752978639938,-463.880384,0.00018568,2]
[373381024,1752978639951,-460.0,0.00018568,2]
[373381025,1752978639963,-460.0,0.00018568,2]
[373381026,1752978639973,-462.25459717,0.00018568,2]
[373381027,1752978639983,-460.0,0.00018568,2]
[373381028,1752978639994,-461.22297579,0.00018568,2]
[373381029,1752978640007,-463.6176202,0.00018568,2]
[373381030,1752978640018,-462.39261857,0.00018568,2]
[373381031,1752978640031,-460.0,0.00018568,2]
[373381032,1752978640042,-465.78434333,0.00018568,2]
[373381033,1752978640054,-462.45913465,0.00018568,2]
[373381036,1752978640065,-460.0,0.00018568,2]
[373381038,1752978640077,-460.0,0.00018568,2]
[373381039,1752978640090,-460.0,0.00018568,2]
[373381040,1752978640101,-460.0,0.00018568,2]
[373381041,1752978640112,-460.0,0.00018568,2]
[373381042,1752978640123,-460.0,0.00018568,2]
[373381043,1752978640135,-460.0,0.00018568,2]
[373381044,1752978640147,-154.24525547,0.00018568,2]
[373381045,1752978640160,-365.76246076,0.00018568,2]
[373381046,1752978640171,-460.0,0.00018568,2]
[373381047,1752978640183,-460.0,0.00018568,2]
[373381048,1752978640193,-460.0,0.00018568,2]
[373381049,1752978640204,-460.0,0.00018568,2]
[373381050,1752978640214,-405.45942984,0.00018568,2]
[373381051,1752978640226,-460.0,0.00018568,2]
[373381052,1752978640237,-460.0,0.00018568,2]
[373381053,1752978640248,-490.63122503,0.00018568,2]
[373381054,1752978640259,-460.0,0.00018568,2]
[373381055,1752978640270,-460.0,0.00018568,2]
[373381056,1752978640284,-460.0,0.00018568,2]
[373381057,1752978640295,-464.91655491,0.00018568,2]
[373381058,1752978640306,-460.0,0.00018568,2]
[373381059,1752978640317,-460.0,0.00018568,2]
[373381060,1752978640327,-1000.0,0.00018569,2]
[373381061,1752978640337,-467.94216789,0.00018569,2]
[373381062,1752978640347,-460.71097874,0.00018569,2]
[373381063,1752978640356,-466.1690313,0.00018569,2]
[373381064,1752978640367,-460.0,0.00018569,2]
[373381065,1752978640379,-463.2873382,0.00018569,2]
[373381066,1752978640389,-462.32749318,0.00018569,2]
[373381067,1752978640401,-510.46354837,0.00018569,2]
[373381068,1752978640412,-469.32763656,0.00018569,2]
[373381069,1752978640423,-462.90058989,0.00018569,2]
[373381070,1752978640434,-461.12880581,0.00018569,2]
[373381071,1752978640446,-460.0,0.00018569,2]
[373381072,1752978640457,-506.64214284,0.00018569,2]
[373381073,1752978640468,-461.63026959,0.00018569,2]
[373381074,1752978640479,-460.77409134,0.00018569,2]
[373381075,1752978640490,-462.26943899,0.00018569,2]
[373381076,1752978640502,-460.0,0.00018569,2]
[373381077,1752978640513,-460.47100468,0.00018569,2]
[373381078,1752978640525,-465.31213804,0.00018569,2]
[373381079,1752978640539,-464.05237479,0.00018569,2]
[373381080,1752978640550,-463.84024398,0.00018569,2]
[373381081,1752978640560,-468.29736263,0.00018569,2]
[373381082,1752978640570,-462.26756632,0.00018569,2]
[373381083,1752978640580,-461.76873521,0.00018569,2]
[373381084,1752978640590,-460.0,0.00018569,2]
[373381085,1752978640599,-464.0640637,0.00018569,2]
[373381086,1752978640610,-466.07647651,0.00018569,2]
[373381087,1752978640621,-462.51365518,0.00018569,2]
[373381088,1752978640632,-463.01182779,0.00018569,2]
[373381089,1752978640645,-459.01110601,0.00018569,2]
[373381090,1752978640656,-463.06496711,0.00018569,2]
[373381091,1752978640672,-458.6270745,0.00018569,2]
[373381092,1752978640683,-465.27911828,0.00018569,2]
[373381093,1752978640694,-463.22346639,0.00018569,2]
[373381094,1752978640704,-462.30044154,0.00018569,2]
[373381095,1752978640714,-460.0,0.00018569,2]
[373381096,1752978640726,-460.0,0.00018569,2]
[373381097,1752978640737,-500.0,0.00018569,2]
[373381098,1752978640747,-500.0,0.00018569,2]
[373381099,1752978640760,-500.0,0.00018569,2]
[373381100,1752978640771,-518.10790517,0.00018569,2]
[373381101,1752978640783,-460.0,0.00018569,2]
[373381102,1752978640794,-460.0,0.00018569,2]
[373381103,1752978640804,-460.0,0.00018569,2]
[373381104,1752978640815,-460.0,0.00018569,2]
[373381105,1752978640826,-460.0,0.00018569,2]
[373381106,1752978640836,-622.03003823,0.00018569,2]
[373381107,1752978640846,-460.0,0.00018569,2]
[373381108,1752978640856,-460.0,0.00018569,2]
[373381109,1752978640867,-460.0,0.00018569,2]
[373381110,1752978640877,-460.0,0.00018569,2]
[373381111,1752978640887,-460.0,0.00018569,2]
[373381112,1752978640897,-460.0,0.00018569,2]
[373381113,1752978640907,-460.0,0.00018569,2]
[373381114,1752978640919,-460.0,0.00018569,2]
[373381115,1752978640929,-460.0,0.00018569,2]